[Event "Swedish Chess Championship 2021: Sverigemastarklassen"]
[Site "Scandic Helsingborg Nord, Florettgatan 41, Helsingborg, Sweden"]
[Date "2021.07.08"]
[Round "6.4"]
[White "Storme, Isak"]
[Black "Hillarp Persson, Tiger"]
[Result "0-1"]
[TimeControl "90 minutes for 40 moves + 30 minutes for the rest of the game + 30 seconds per move from move one."]
[WhiteTitle "FM"]
[BlackTitle "GM"]
[WhiteFideId "1728113"]
[BlackFideId "1700812"]
[WhiteElo "2397"]
[BlackElo "2542"]

1. d4 {[%clk 01:30:57]} {[%emt 00:00:01]} d5 {[%clk 01:29:04]} {[%emt
00:01:57]} 2. c4 {[%clk 01:31:11]} {[%emt 00:00:16]} e6 {[%clk 01:29:16]}
{[%emt 00:00:18]} 3. Nf3 {[%clk 01:31:20]} {[%emt 00:00:21]} c6 {[%clk
01:29:27]} {[%emt 00:00:19]} 4. e3 {[%clk 01:30:29]} {[%emt 00:01:21]} f5
{[%clk 01:29:47]} {[%emt 00:00:10]} 5. Nc3 {[%clk 01:30:01]} {[%emt 00:00:57]}
Nf6 {[%clk 01:30:10]} {[%emt 00:00:07]} 6. Ne5 {[%clk 01:29:16]} {[%emt
00:01:15]} Nbd7 {[%clk 01:27:46]} {[%emt 00:02:53]} 7. f4 {[%clk 01:27:24]}
{[%emt 00:02:22]} Bb4 {[%clk 01:12:38]} {[%emt 00:15:38]} 8. Bd3 {[%clk
01:21:49]} {[%emt 00:06:04]} Nxe5 {[%clk 01:08:03]} {[%emt 00:05:05]} 9. fxe5
{[%clk 01:20:13]} {[%emt 00:02:06]} Ne4 {[%clk 01:07:26]} {[%emt 00:01:07]} 10.
Bxe4 {[%clk 01:15:35]} {[%emt 00:05:08]} Qh4+ {[%clk 01:00:29]} {[%emt
00:07:27]} 11. g3 {[%clk 01:14:41]} {[%emt 00:01:25]} Bxc3+ {[%clk 01:00:42]}
{[%emt 00:00:18]} 12. bxc3 {[%clk 01:14:28]} {[%emt 00:00:43]} Qxe4 {[%clk
01:01:03]} {[%emt 00:00:08]} 13. O-O {[%clk 01:10:16]} {[%emt 00:04:41]} dxc4
{[%clk 01:00:39]} {[%emt 00:00:55]} 14. Qh5+ {[%clk 01:02:13]} {[%emt
00:08:33]} g6 {[%clk 01:00:34]} {[%emt 00:00:35]} 15. Qg5 {[%clk 01:01:47]}
{[%emt 00:00:55]} O-O {[%clk 00:58:07]} {[%emt 00:02:58]} 16. Ba3 {[%clk
00:51:20]} {[%emt 00:10:57]} c5 {[%clk 00:55:37]} {[%emt 00:03:00]} 17. Qf4
{[%clk 00:49:56]} {[%emt 00:01:54]} Qxf4 {[%clk 00:53:26]} {[%emt 00:02:41]} 18.
exf4 {[%clk 00:49:00]} {[%emt 00:01:26]} cxd4 {[%clk 00:31:37]} {[%emt
00:22:20]} 19. Bxf8 {[%clk 00:49:24]} {[%emt 00:00:06]} Kxf8 {[%clk 00:32:01]}
{[%emt 00:00:06]} 20. cxd4 {[%clk 00:46:00]} {[%emt 00:03:54]} Bd7 {[%clk
00:25:45]} {[%emt 00:06:46]} 21. Rfc1 {[%clk 00:44:47]} {[%emt 00:01:43]} Bb5
{[%clk 00:25:49]} {[%emt 00:00:26]} 22. Rab1 {[%clk 00:44:20]} {[%emt
00:00:57]} Ba6 {[%clk 00:26:09]} {[%emt 00:00:10]} 23. Kf2 {[%clk 00:43:47]}
{[%emt 00:01:03]} Ke7 {[%clk 00:21:18]} {[%emt 00:05:22]} 24. Ke3 {[%clk
00:43:33]} {[%emt 00:00:43]} Kd7 {[%clk 00:19:53]} {[%emt 00:01:55]} 25. d5
{[%clk 00:38:14]} {[%emt 00:05:50]} exd5 {[%clk 00:20:02]} {[%emt 00:00:22]} 26.
Kd4 {[%clk 00:38:37]} {[%emt 00:00:06]} Ke6 {[%clk 00:20:14]} {[%emt 00:00:18]}
27. Rb4 {[%clk 00:36:58]} {[%emt 00:02:10]} b6 {[%clk 00:15:16]} {[%emt
00:05:28]} 28. Rcb1 {[%clk 00:34:27]} {[%emt 00:03:01]} Bb7 {[%clk 00:12:02]}
{[%emt 00:03:45]} 29. Rxb6+ {[%clk 00:16:53]} {[%emt 00:18:04]} axb6 {[%clk
00:12:20]} {[%emt 00:00:12]} 30. Rxb6+ {[%clk 00:17:18]} {[%emt 00:00:04]} Kd7
{[%clk 00:12:42]} {[%emt 00:00:07]} 31. Rxb7+ {[%clk 00:17:43]} {[%emt
00:00:05]} Kc6 {[%clk 00:13:06]} {[%emt 00:00:06]} 32. Rb2 {[%clk 00:17:07]}
{[%emt 00:01:06]} Ra3 {[%clk 00:13:02]} {[%emt 00:00:35]} 33. Rd2 {[%clk
00:15:07]} {[%emt 00:02:29]} Rf3 {[%clk 00:12:41]} {[%emt 00:00:51]} 34. Rd1
{[%clk 00:07:21]} {[%emt 00:08:15]} Rf2 {[%clk 00:09:02]} {[%emt 00:04:09]} 35.
Re1 {[%clk 00:06:13]} {[%emt 00:01:38]} Rd2+ {[%clk 00:08:40]} {[%emt
00:00:53]} 36. Kc3 {[%clk 00:05:51]} {[%emt 00:00:52]} Rxa2 {[%clk 00:08:49]}
{[%emt 00:00:22]} 37. e6 {[%clk 00:05:36]} {[%emt 00:00:45]} Ra3+ {[%clk
00:09:10]} {[%emt 00:00:08]} 38. Kd2 {[%clk 00:01:55]} {[%emt 00:04:11]} Ra8
{[%clk 00:09:31]} {[%emt 00:00:10]} 39. Kc3 {[%clk 00:00:41]} {[%emt 00:01:43]}
Kd6 {[%clk 00:09:17]} {[%emt 00:00:44]} 40. e7 {[%clk 00:00:34]} {[%emt
00:00:38]} Re8 {[%clk 00:09:34]} {[%emt 00:00:13]} 41. Ra1 {[%clk 00:25:17]}
{[%emt 00:05:47]} Rxe7 {[%clk 00:39:22]} {[%emt 00:00:42]} 42. Ra6+ {[%clk
00:25:40]} {[%emt 00:00:07]} Kc5 {[%clk 00:39:44]} {[%emt 00:00:07]} 43. Ra5+
{[%clk 00:26:06]} {[%emt 00:00:05]} Kc6 {[%clk 00:40:07]} {[%emt 00:00:07]} 44.
Ra8 {[%clk 00:21:44]} {[%emt 00:04:52]} Re3+ {[%clk 00:38:16]} {[%emt
00:02:21]} 45. Kd4 {[%clk 00:21:53]} {[%emt 00:00:21]} Rd3+ {[%clk 00:37:53]}
{[%emt 00:00:52]} 46. Ke5 {[%clk 00:22:17]} {[%emt 00:00:07]} c3 {[%clk
00:37:56]} {[%emt 00:00:27]} 0-1

[Event "Swedish Chess Championship 2021: Sverigemastarklassen"]
[Site "Scandic Helsingborg Nord, Florettgatan 41, Helsingborg, Sweden"]
[Date "2021.07.08"]
[Round "6.5"]
[White "Wiedenkeller, Michael"]
[Black "Hector, Jonny"]
[Result "1-0"]
[TimeControl "90 minutes for 40 moves + 30 minutes for the rest of the game + 30 seconds per move from move one."]
[WhiteTitle "IM"]
[BlackTitle "GM"]
[WhiteFideId "1700146"]
[BlackFideId "1700090"]
[WhiteElo "2445"]
[BlackElo "2479"]

1. c4 {[%clk 01:30:35]} {[%emt 00:00:07]} e5 {[%clk 01:30:49]} {[%emt
00:00:11]} 2. Nc3 {[%clk 01:30:27]} {[%emt 00:00:39]} Bb4 {[%clk 01:31:03]}
{[%emt 00:00:15]} 3. Nd5 {[%clk 01:30:10]} {[%emt 00:00:47]} Ba5 {[%clk
01:31:14]} {[%emt 00:00:19]} 4. b4 {[%clk 01:20:28]} {[%emt 00:10:13]} Bb6
{[%clk 01:31:36]} {[%emt 00:00:08]} 5. Bb2 {[%clk 01:14:41]} {[%emt 00:06:17]}
d6 {[%clk 01:31:45]} {[%emt 00:00:20]} 6. d4 {[%clk 01:07:09]} {[%emt
00:08:02]} Bxd4 {[%clk 01:29:10]} {[%emt 00:03:05]} 7. Bxd4 {[%clk 01:06:00]}
{[%emt 00:01:40]} exd4 {[%clk 01:27:56]} {[%emt 00:01:42]} 8. Qxd4 {[%clk
01:05:46]} {[%emt 00:00:44]} Nf6 {[%clk 01:28:13]} {[%emt 00:00:12]} 9. Nxf6+
{[%clk 01:03:02]} {[%emt 00:03:16]} Qxf6 {[%clk 01:28:32]} {[%emt 00:00:10]} 10.
Qxf6 {[%clk 01:02:50]} {[%emt 00:00:43]} gxf6 {[%clk 01:28:57]} {[%emt
00:00:04]} 11. e3 {[%clk 00:58:58]} {[%emt 00:04:24]} a5 {[%clk 01:27:28]}
{[%emt 00:01:59]} 12. b5 {[%clk 00:59:13]} {[%emt 00:00:15]} Be6 {[%clk
01:18:57]} {[%emt 00:08:59]} 13. Nf3 {[%clk 00:56:00]} {[%emt 00:03:44]} Rg8
{[%clk 01:14:22]} {[%emt 00:05:06]} 14. Nd4 {[%clk 00:53:27]} {[%emt 00:03:03]}
Nd7 {[%clk 01:14:14]} {[%emt 00:00:37]} 15. f3 {[%clk 00:52:01]} {[%emt
00:01:56]} a4 {[%clk 01:06:20]} {[%emt 00:08:24]} 16. Kf2 {[%clk 00:49:12]}
{[%emt 00:03:19]} Rg5 {[%clk 01:05:46]} {[%emt 00:01:03]} 17. Bd3 {[%clk
00:39:25]} {[%emt 00:10:17]} h6 {[%clk 01:00:00]} {[%emt 00:06:14]} 18. Rhc1
{[%clk 00:34:36]} {[%emt 00:05:20]} Rc5 {[%clk 00:59:50]} {[%emt 00:00:40]} 19.
Be4 {[%clk 00:22:44]} {[%emt 00:12:23]} O-O-O {[%clk 00:57:36]} {[%emt
00:02:43]} 20. Nxe6 {[%clk 00:19:18]} {[%emt 00:03:57]} fxe6 {[%clk 00:57:56]}
{[%emt 00:00:08]} 21. Bd3 {[%clk 00:15:47]} {[%emt 00:04:02]} Kb8 {[%clk
00:47:02]} {[%emt 00:11:23]} 22. f4 {[%clk 00:14:00]} {[%emt 00:02:17]} f5
{[%clk 00:44:42]} {[%emt 00:02:50]} 23. Rab1 {[%clk 00:13:22]} {[%emt
00:01:08]} Nb6 {[%clk 00:39:05]} {[%emt 00:06:06]} 24. Be2 {[%clk 00:12:55]}
{[%emt 00:00:58]} Re8 {[%clk 00:32:47]} {[%emt 00:06:47]} 25. h3 {[%clk
00:11:51]} {[%emt 00:01:35]} e5 {[%clk 00:32:18]} {[%emt 00:00:58]} 26. Bd3
{[%clk 00:11:40]} {[%emt 00:00:41]} Rf8 {[%clk 00:24:10]} {[%emt 00:08:37]} 27.
Be2 {[%clk 00:10:48]} {[%emt 00:01:24]} Kc8 {[%clk 00:21:12]} {[%emt 00:03:28]}
28. g3 {[%clk 00:10:32]} {[%emt 00:00:46]} Kd7 {[%clk 00:20:31]} {[%emt
00:01:11]} 29. Rc2 {[%clk 00:09:51]} {[%emt 00:01:12]} Re8 {[%clk 00:17:28]}
{[%emt 00:03:32]} 30. Rbc1 {[%clk 00:09:46]} {[%emt 00:00:35]} Kd8 {[%clk
00:14:28]} {[%emt 00:03:30]} 31. Bf3 {[%clk 00:09:28]} {[%emt 00:00:49]} Kc8
{[%clk 00:14:31]} {[%emt 00:00:26]} 32. g4 {[%clk 00:08:38]} {[%emt 00:01:20]}
fxg4 {[%clk 00:10:13]} {[%emt 00:04:48]} 33. hxg4 {[%clk 00:08:51]} {[%emt
00:00:18]} exf4 {[%clk 00:10:12]} {[%emt 00:00:31]} 34. exf4 {[%clk 00:09:13]}
{[%emt 00:00:08]} Rf8 {[%clk 00:10:20]} {[%emt 00:00:22]} 35. Kg3 {[%clk
00:08:48]} {[%emt 00:00:56]} Rf6 {[%clk 00:08:01]} {[%emt 00:02:48]} 36. Be4
{[%clk 00:06:32]} {[%emt 00:02:47]} Kb8 {[%clk 00:06:27]} {[%emt 00:02:04]} 37.
Bd3 {[%clk 00:06:07]} {[%emt 00:00:55]} d5 {[%clk 00:05:22]} {[%emt 00:01:35]}
38. cxd5 {[%clk 00:04:44]} {[%emt 00:01:54]} Rxd5 {[%clk 00:04:12]} {[%emt
00:01:39]} 39. Bf5 {[%clk 00:02:06]} {[%emt 00:03:08]} Rxb5 {[%clk 00:02:05]}
{[%emt 00:02:37]} 40. Rxc7 {[%clk 00:02:22]} {[%emt 00:00:14]} Rb4 {[%clk
00:00:51]} {[%emt 00:01:44]} 41. R7c5 {[%clk 00:28:06]} {[%emt 00:04:46]} Rb2
{[%clk 00:24:07]} {[%emt 00:07:13]} 42. g5 {[%clk 00:20:59]} {[%emt 00:07:38]}
hxg5 {[%clk 00:24:23]} {[%emt 00:00:14]} 43. fxg5 {[%clk 00:21:23]} {[%emt
00:00:06]} Rf7 {[%clk 00:23:46]} {[%emt 00:01:06]} 44. g6 {[%clk 00:19:42]}
{[%emt 00:02:13]} Rg7 {[%clk 00:23:15]} {[%emt 00:00:59]} 45. Rc7 {[%clk
00:12:33]} {[%emt 00:07:40]} Rb5 {[%clk 00:21:39]} {[%emt 00:02:06]} 46. Rxg7
{[%clk 00:11:43]} {[%emt 00:01:20]} Rxf5 {[%clk 00:22:04]} {[%emt 00:00:04]} 47.
Rcc7 {[%clk 00:10:49]} {[%emt 00:01:24]} Ka8 {[%clk 00:22:27]} {[%emt
00:00:07]} 48. Kg4 {[%clk 00:09:11]} {[%emt 00:02:09]} Rf6 {[%clk 00:21:51]}
{[%emt 00:01:05]} 49. Rcf7 {[%clk 00:09:08]} {[%emt 00:00:33]} Rc6 {[%clk
00:22:05]} {[%emt 00:00:16]} 50. Rg8+ {[%clk 00:09:15]} {[%emt 00:00:23]} Ka7
{[%clk 00:22:28]} {[%emt 00:00:06]} 51. g7 {[%clk 00:09:23]} {[%emt 00:00:22]}
Rc1 {[%clk 00:22:24]} {[%emt 00:00:34]} 52. Re8 {[%clk 00:08:49]} {[%emt
00:01:03]} Rg1+ {[%clk 00:22:40]} {[%emt 00:00:14]} 53. Kh3 {[%clk 00:08:44]}
{[%emt 00:00:34]} 1-0

[Event "Swedish Chess Championship 2021: Sverigemastarklassen"]
[Site "Scandic Helsingborg Nord, Florettgatan 41, Helsingborg, Sweden"]
[Date "2021.07.09"]
[Round "7.1"]
[White "Hector, Jonny"]
[Black "Cramling, Pia"]
[Result "1/2-1/2"]
[TimeControl "90 minutes for 40 moves + 30 minutes for the rest of the game + 30 seconds per move from move one."]
[WhiteTitle "GM"]
[BlackTitle "GM"]
[WhiteFideId "1700090"]
[BlackFideId "1700030"]
[WhiteElo "2479"]
[BlackElo "2459"]

1. e4 {[%clk 01:30:54]} {[%emt 00:00:04]} c5 {[%clk 01:30:51]} {[%emt
00:00:10]} 2. Nf3 {[%clk 01:31:16]} {[%emt 00:00:07]} a6 {[%clk 01:30:44]}
{[%emt 00:00:37]} 3. c4 {[%clk 01:30:40]} {[%emt 00:01:05]} e6 {[%clk
01:30:57]} {[%emt 00:00:18]} 4. d4 {[%clk 01:30:26]} {[%emt 00:00:44]} cxd4
{[%clk 01:30:55]} {[%emt 00:00:33]} 5. Nxd4 {[%clk 01:30:34]} {[%emt 00:00:21]}
Nf6 {[%clk 01:29:09]} {[%emt 00:02:16]} 6. Nc3 {[%clk 01:30:33]} {[%emt
00:00:31]} Qc7 {[%clk 01:29:24]} {[%emt 00:00:15]} 7. Be2 {[%clk 01:29:18]}
{[%emt 00:01:44]} b6 {[%clk 01:26:03]} {[%emt 00:03:53]} 8. O-O {[%clk
01:27:00]} {[%emt 00:02:48]} Bb7 {[%clk 01:26:21]} {[%emt 00:00:12]} 9. Qd3
{[%clk 01:26:49]} {[%emt 00:00:41]} Nc6 {[%clk 01:25:05]} {[%emt 00:01:46]} 10.
Nxc6 {[%clk 01:26:18]} {[%emt 00:01:00]} dxc6 {[%clk 01:25:23]} {[%emt
00:00:12]} 11. f4 {[%clk 01:24:40]} {[%emt 00:02:09]} Rd8 {[%clk 01:25:10]}
{[%emt 00:00:44]} 12. Qh3 {[%clk 01:24:15]} {[%emt 00:00:52]} c5 {[%clk
01:02:08]} {[%emt 00:23:35]} 13. f5 {[%clk 01:23:25]} {[%emt 00:01:20]} e5
{[%clk 00:58:51]} {[%emt 00:03:47]} 14. Bf3 {[%clk 01:03:20]} {[%emt 00:20:34]}
Rd3 {[%clk 00:50:00]} {[%emt 00:09:21]} 15. Re1 {[%clk 01:00:54]} {[%emt
00:02:57]} Be7 {[%clk 00:41:25]} {[%emt 00:09:05]} 16. Be3 {[%clk 00:59:07]}
{[%emt 00:02:17]} Rd7 {[%clk 00:32:28]} {[%emt 00:09:27]} 17. g4 {[%clk
00:55:13]} {[%emt 00:04:24]} h6 {[%clk 00:26:56]} {[%emt 00:06:03]} 18. g5
{[%clk 00:52:00]} {[%emt 00:03:42]} Nh7 {[%clk 00:27:19]} {[%emt 00:00:07]} 19.
gxh6 {[%clk 00:49:23]} {[%emt 00:03:08]} Nf6 {[%clk 00:27:07]} {[%emt
00:00:42]} 20. Nd5 {[%clk 00:43:50]} {[%emt 00:06:02]} Bxd5 {[%clk 00:27:10]}
{[%emt 00:00:28]} 21. exd5 {[%clk 00:44:10]} {[%emt 00:00:10]} gxh6 {[%clk
00:25:01]} {[%emt 00:02:39]} 22. Bf2 {[%clk 00:42:39]} {[%emt 00:02:00]} Kf8
{[%clk 00:21:32]} {[%emt 00:03:59]} 23. Re2 {[%clk 00:40:26]} {[%emt 00:02:44]}
Kg7 {[%clk 00:18:23]} {[%emt 00:03:38]} 24. Kh1 {[%clk 00:35:45]} {[%emt
00:05:11]} Rdd8 {[%clk 00:15:41]} {[%emt 00:03:13]} 25. Bh4 {[%clk 00:28:59]}
{[%emt 00:07:16]} Rde8 {[%clk 00:03:44]} {[%emt 00:12:27]} 26. Qg3+ {[%clk
00:15:03]} {[%emt 00:14:25]} Kh7 {[%clk 00:04:06]} {[%emt 00:00:08]} 27. Rae1
{[%clk 00:09:09]} {[%emt 00:06:24]} Bd8 {[%clk 00:04:14]} {[%emt 00:00:23]} 28.
Qh3 {[%clk 00:05:35]} {[%emt 00:04:03]} Qd6 {[%clk 00:02:52]} {[%emt 00:01:52]}
29. Bg5 {[%clk 00:05:34]} {[%emt 00:00:32]} Qf8 {[%clk 00:03:07]} {[%emt
00:00:14]} 30. Qh4 {[%clk 00:04:43]} {[%emt 00:01:22]} Qg7 {[%clk 00:02:39]}
{[%emt 00:00:58]} 31. Rg2 {[%clk 00:04:32]} {[%emt 00:00:41]} e4 {[%clk
00:01:43]} {[%emt 00:01:27]} 32. Bd2 {[%clk 00:04:34]} {[%emt 00:00:28]} Qf8
{[%clk 00:01:51]} {[%emt 00:00:22]} 33. Bd1 {[%clk 00:03:12]} {[%emt 00:01:52]}
Rg8 {[%clk 00:02:07]} {[%emt 00:00:14]} 34. Rxg8 {[%clk 00:02:45]} {[%emt
00:00:58]} Nxg8 {[%clk 00:02:36]} {[%emt 00:00:01]} 35. f6 {[%clk 00:02:35]}
{[%emt 00:00:39]} Bxf6 {[%clk 00:02:29]} {[%emt 00:00:36]} 36. Qf4 {[%clk
00:01:52]} {[%emt 00:01:13]} Kh8 {[%clk 00:02:36]} {[%emt 00:00:23]} 37. Rxe4
{[%clk 00:01:43]} {[%emt 00:00:40]} Rxe4 {[%clk 00:01:22]} {[%emt 00:01:44]} 38.
Qxe4 {[%clk 00:02:11]} {[%emt 00:00:02]} Bxb2 {[%clk 00:00:51]} {[%emt
00:01:01]} 39. Bc2 {[%clk 00:01:50]} {[%emt 00:00:52]} Nf6 {[%clk 00:01:04]}
{[%emt 00:00:15]} 40. Qh4 {[%clk 00:01:12]} {[%emt 00:01:08]} h5 {[%clk
00:00:48]} {[%emt 00:00:46]} 41. Qg3 {[%clk 00:24:07]} {[%emt 00:07:36]} Bd4
{[%clk 00:17:34]} {[%emt 00:13:43]} 42. a4 {[%clk 00:18:24]} {[%emt 00:06:14]}
Qe8 {[%clk 00:15:33]} {[%emt 00:02:24]} 43. Qf3 {[%clk 00:16:29]} {[%emt
00:02:31]} Qg8 {[%clk 00:10:53]} {[%emt 00:05:08]} 44. Qg3 {[%clk 00:13:39]}
{[%emt 00:03:21]} Qxg3 {[%clk 00:08:12]} {[%emt 00:03:13]} 45. hxg3 {[%clk
00:14:05]} {[%emt 00:00:03]} Be5 {[%clk 00:08:36]} {[%emt 00:00:06]} 46. Kg2
{[%clk 00:12:51]} {[%emt 00:01:45]} Kg7 {[%clk 00:08:54]} {[%emt 00:00:13]} 47.
Kh3 {[%clk 00:11:27]} {[%emt 00:01:53]} Ne8 {[%clk 00:08:01]} {[%emt 00:01:23]}
48. Kh4 {[%clk 00:11:13]} {[%emt 00:00:44]} Nd6 {[%clk 00:07:32]} {[%emt
00:00:59]} 49. Bd3 {[%clk 00:11:33]} {[%emt 00:00:10]} f5 {[%clk 00:07:04]}
{[%emt 00:00:58]} 50. Kxh5 {[%clk 00:09:36]} {[%emt 00:02:27]} Bxg3 {[%clk
00:07:10]} {[%emt 00:00:24]} 51. Kg5 {[%clk 00:09:52]} {[%emt 00:00:14]} Be5
{[%clk 00:04:59]} {[%emt 00:02:41]} 52. a5 {[%clk 00:08:09]} {[%emt 00:02:13]}
bxa5 {[%clk 00:05:14]} {[%emt 00:00:16]} 53. Bxa5 {[%clk 00:08:35]} {[%emt
00:00:04]} Kf7 {[%clk 00:05:15]} {[%emt 00:00:29]} 54. Bc7 {[%clk 00:05:38]}
{[%emt 00:03:27]} Ne4+ {[%clk 00:02:09]} {[%emt 00:03:36]} 55. Kxf5 {[%clk
00:05:16]} {[%emt 00:00:53]} Bxc7 {[%clk 00:02:36]} {[%emt 00:00:03]} 56. Kxe4
{[%clk 00:05:29]} {[%emt 00:00:17]} Ke7 {[%clk 00:03:00]} {[%emt 00:00:05]}
1/2-1/2

[Event "Swedish Chess Championship 2021: Sverigemastarklassen"]
[Site "Scandic Helsingborg Nord, Florettgatan 41, Helsingborg, Sweden"]
[Date "2021.07.09"]
[Round "7.2"]
[White "Westerberg, Jonathan"]
[Black "Seo, Jung Min"]
[Result "1/2-1/2"]
[TimeControl "90 minutes for 40 moves + 30 minutes for the rest of the game + 30 seconds per move from move one."]
[WhiteTitle "GM"]
[BlackTitle "IM"]
[WhiteFideId "1701754"]
[BlackFideId "1734687"]
[WhiteElo "2534"]
[BlackElo "2453"]

1. d4 {[%clk 01:30:37]} {[%emt 00:00:22]} Nf6 {[%clk 01:30:53]} {[%emt
00:00:08]} 2. c4 {[%clk 01:30:49]} {[%emt 00:00:18]} e6 {[%clk 01:31:09]}
{[%emt 00:00:14]} 3. Nc3 {[%clk 01:30:47]} {[%emt 00:00:32]} Bb4 {[%clk
01:31:24]} {[%emt 00:00:15]} 4. e3 {[%clk 01:30:25]} {[%emt 00:00:51]} O-O
{[%clk 01:30:13]} {[%emt 00:01:41]} 5. Bd2 {[%clk 01:28:22]} {[%emt 00:02:32]}
d5 {[%clk 01:23:19]} {[%emt 00:07:24]} 6. Nf3 {[%clk 01:28:22]} {[%emt
00:00:30]} Re8 {[%clk 01:21:47]} {[%emt 00:02:01]} 7. Rc1 {[%clk 01:24:56]}
{[%emt 00:03:56]} Bf8 {[%clk 01:18:38]} {[%emt 00:03:40]} 8. Bd3 {[%clk
01:20:09]} {[%emt 00:05:18]} Nbd7 {[%clk 01:17:48]} {[%emt 00:01:19]} 9. O-O
{[%clk 01:04:14]} {[%emt 00:16:25]} c5 {[%clk 01:14:35]} {[%emt 00:03:43]} 10.
cxd5 {[%clk 00:49:50]} {[%emt 00:14:55]} exd5 {[%clk 01:14:30]} {[%emt
00:00:35]} 11. Qc2 {[%clk 00:45:49]} {[%emt 00:04:30]} c4 {[%clk 01:04:13]}
{[%emt 00:10:47]} 12. Bf5 {[%clk 00:45:15]} {[%emt 00:01:05]} g6 {[%clk
01:00:32]} {[%emt 00:04:10]} 13. Bh3 {[%clk 00:42:43]} {[%emt 00:03:02]} a6
{[%clk 00:56:46]} {[%emt 00:04:16]} 14. a4 {[%clk 00:37:26]} {[%emt 00:05:47]}
Rb8 {[%clk 00:55:16]} {[%emt 00:02:00]} 15. Na2 {[%clk 00:28:12]} {[%emt
00:09:45]} b5 {[%clk 00:53:58]} {[%emt 00:01:47]} 16. axb5 {[%clk 00:27:27]}
{[%emt 00:01:16]} axb5 {[%clk 00:48:21]} {[%emt 00:06:07]} 17. Bb4 {[%clk
00:27:17]} {[%emt 00:00:39]} Ra8 {[%clk 00:39:47]} {[%emt 00:09:05]} 18. Bxd7
{[%clk 00:22:48]} {[%emt 00:04:59]} Bxd7 {[%clk 00:39:22]} {[%emt 00:00:54]} 19.
Bxf8 {[%clk 00:23:05]} {[%emt 00:00:11]} Rxf8 {[%clk 00:39:16]} {[%emt
00:00:38]} 20. Ra1 {[%clk 00:18:29]} {[%emt 00:05:07]} Qe7 {[%clk 00:35:47]}
{[%emt 00:03:58]} 21. Qd2 {[%clk 00:12:34]} {[%emt 00:06:27]} Ra4 {[%clk
00:32:30]} {[%emt 00:03:46]} 22. Nc3 {[%clk 00:12:48]} {[%emt 00:00:16]} Rxa1
{[%clk 00:32:51]} {[%emt 00:00:09]} 23. Rxa1 {[%clk 00:13:17]} b4 {[%clk
00:33:11]} {[%emt 00:00:10]} 24. Ne2 {[%clk 00:11:53]} {[%emt 00:01:55]} Ne4
{[%clk 00:32:01]} {[%emt 00:01:39]} 25. Qe1 {[%clk 00:11:54]} {[%emt 00:00:29]}
Rc8 {[%clk 00:29:22]} {[%emt 00:03:10]} 26. Ne5 {[%clk 00:11:40]} {[%emt
00:00:44]} Be8 {[%clk 00:25:22]} {[%emt 00:04:30]} 27. f3 {[%clk 00:11:10]}
{[%emt 00:01:00]} Nf6 {[%clk 00:25:23]} {[%emt 00:00:29]} 28. Qh4 {[%clk
00:10:14]} {[%emt 00:01:26]} Qd6 {[%clk 00:24:42]} {[%emt 00:01:11]} 29. g4
{[%clk 00:07:24]} {[%emt 00:03:21]} Nd7 {[%clk 00:23:46]} {[%emt 00:01:25]} 30.
Qg3 {[%clk 00:07:01]} {[%emt 00:00:53]} f6 {[%clk 00:22:34]} {[%emt 00:01:42]}
31. Nxd7 {[%clk 00:07:08]} {[%emt 00:00:24]} Qxd7 {[%clk 00:22:54]} {[%emt
00:00:10]} 32. Qf4 {[%clk 00:06:13]} {[%emt 00:01:24]} Qe7 {[%clk 00:23:00]}
{[%emt 00:00:23]} 33. h4 {[%clk 00:03:58]} {[%emt 00:02:46]} c3 {[%clk
00:20:39]} {[%emt 00:02:51]} 34. bxc3 {[%clk 00:04:20]} {[%emt 00:00:09]} Bb5
{[%clk 00:20:24]} {[%emt 00:00:45]} 35. Ng3 {[%clk 00:04:00]} {[%emt 00:00:50]}
bxc3 {[%clk 00:20:37]} {[%emt 00:00:17]} 36. e4 {[%clk 00:03:52]} {[%emt
00:00:38]} Bc4 {[%clk 00:09:58]} {[%emt 00:11:08]} 37. h5 {[%clk 00:02:43]}
{[%emt 00:01:39]} c2 {[%clk 00:09:51]} {[%emt 00:00:37]} 38. hxg6 {[%clk
00:02:45]} {[%emt 00:00:28]} hxg6 {[%clk 00:10:18]} {[%emt 00:00:03]} 39. Rc1
{[%clk 00:01:52]} {[%emt 00:01:24]} Bb3 {[%clk 00:09:43]} {[%emt 00:01:04]} 40.
Kf2 {[%clk 00:00:49]} {[%emt 00:01:33]} Qf7 {[%clk 00:04:22]} {[%emt 00:05:50]}
41. g5 {[%clk 00:23:29]} {[%emt 00:07:50]} fxg5 {[%clk 00:27:40]} {[%emt
00:07:12]} 42. Qxg5 {[%clk 00:23:27]} {[%emt 00:00:31]} dxe4 {[%clk 00:27:54]}
{[%emt 00:00:17]} 43. Nxe4 {[%clk 00:23:13]} {[%emt 00:00:43]} Rf8 {[%clk
00:28:10]} {[%emt 00:00:14]} 44. Qe3 {[%clk 00:20:18]} {[%emt 00:03:25]} Qe6
{[%clk 00:27:58]} {[%emt 00:00:42]} 45. Nd2 {[%clk 00:11:44]} {[%emt 00:09:05]}
Qxe3+ {[%clk 00:28:13]} {[%emt 00:00:15]} 46. Kxe3 {[%clk 00:12:12]} {[%emt
00:00:01]} Ba4 {[%clk 00:28:35]} {[%emt 00:00:08]} 47. Nc4 {[%clk 00:10:56]}
{[%emt 00:01:46]} Rb8 {[%clk 00:28:14]} {[%emt 00:00:51]} 48. Ne5 {[%clk
00:09:42]} {[%emt 00:01:45]} Rb1 {[%clk 00:28:08]} {[%emt 00:00:35]} 49. Kd2
{[%clk 00:08:46]} {[%emt 00:01:28]} Rb4 {[%clk 00:28:03]} {[%emt 00:00:34]} 50.
Kc3 {[%clk 00:08:20]} {[%emt 00:00:57]} Rb1 {[%clk 00:28:25]} {[%emt 00:00:07]}
51. Kd2 {[%clk 00:07:46]} {[%emt 00:01:05]} Rb4 {[%clk 00:28:49]} {[%emt
00:00:05]} 52. Kc3 {[%clk 00:07:46]} {[%emt 00:00:30]} Rb1 {[%clk 00:29:15]}
{[%emt 00:00:03]} 53. Kd2 {[%clk 00:07:35]} {[%emt 00:00:41]} 1/2-1/2